{"text_format":"1","workbook":"xlsx","n_sheets":2,"sheets":["يوميه تسويات أكتوبر","اليوميه العامه"],"not_rendered":{"charts":0,"images":0,"macros":0,"external_links":6,"defined_names":17,"comments":0,"pivot_tables":0},"unopened":[],"bounds":{"document_bytes":16777216,"sheet_cells":100000,"rows_first":2000,"rows_last":500,"rows_between":2000,"halvings":0,"cell_chars":16384,"cell_head_chars":4096},"cells_cut":0,"cells_raw":0,"read":"whole","date_system":"1900"}

{"sheet":"يوميه تسويات أكتوبر","index":0,"n_rows":165,"n_cols":9,"rows_kept":165,"cut":false,"hidden":false,"merged":[[3,4,3,6]]}
[]
[null,null,null,"برنامج المحـــــــــــــاسب"]
[]
[null,null,null,null,"قيود التسويات عن شهـــــــــــر",null,null,"2019-10-31"]
[]
[null,"رقم القيد","التاريخ","رقـــــم الحساب"," إسم  الحســـــــــــاب","مدين","دائن","بيــــــــان","ملاحظـــــــــــات"]
[null,"No","Date","Codes","Account","Debit.","Credit.","Explanation","Notes"]
[{"$error":"#REF!"},1,"2019-10-31",1124,"نجف وأبليكات",2730,0,"قيمة شراء نجف وأبليكات كتان",0]
[null,1,"2019-10-31",1125,"أنتريهات",4700,0,"قيمة طقم أنتريه للشركه",0]
[1,1,"2019-10-31",32713,"مصاريف رسوم إداريه",2500,0,"قيمة عهدة الأستاذ خالد المحامي لعمل أوراق الشركه",0]
[2,1,"2019-10-31",3241,"مصاريف إيجار",5000,0,"قيمة عهدة السيده نانسي بهيج جزء من إيجار مقر الشركه لحين التسويه بالمستندات",0]
[3,1,"2019-10-31",32711,"مصاريف مكافآت لغير العاملين عن خدمات مؤداه",2000,0,"مصاريف السمسره الخاصه بمقر الشركه للسمسار + سامح من المبنى ",0]
[4,1,"2019-10-31",3128,"مصاريف كمبيوتر وشبكات ",682.48,0,"باقة إنترنت سوبرwe space 600 جيجا 491.48  + شحن باقة الإنترنت 118",0]
[5,1,"2019-10-31",3232,"مصاريف كهرباء عموميه",212,0,"قيمة مصاريف الكهرباء لشهور 8+9+10 تم إحتساب 8+9 لحين سدادها من صاحب الشقه",0]
[6,1,"2019-10-31",32705,"مصاريف صيانه عموميه",1442.5,0,"قيمة3لمبات أليوس كاندل142.5  650مصنعيه تركيبات كهرباء في مقر الشركه+400 صيانة العماره",0]
[7,1,"2019-10-31",32706,"إكراميات عموميه",358.52,0,"208.52إكراميه موظفي السنترال +100ثم 50 موظفي الأمن",0]
[8,1,"2019-10-31",3251,"مصاريف بوفيه",442.25,0,"99.25شراء مستلزمات المطبخ+50شراء مستلزمات للبوفيه+63مستلزمات بوفيه+160+20",0]
[9,1,"2019-10-31",3128,"مصاريف كمبيوتر وشبكات ",1000,0,"1000عمل نتورك شبكه الشركه",0]
[10,1,"2019-10-31",32709,"مصاريف نظافه",1204.5,0,"199.5قيمة مستلزمات نظافه للشركه+350مصاريف تنظيف الشركه+200غسيل سجاد الشركه+150قيمه مساحه باركيه",0]
[11,1,"2019-10-31",32703,"مصاريف مكتب أخرى عموميه",4343,0,"مصاريف مكتب موزعه في خزينة الشركه",0]
[12,1,"2019-10-31",3252,"مصاريف ترفيه ",1000,0,"مكافأة كومبتيشن الشركه لساره يحيى","Badr"]
[13,1,"2019-10-31",3261,"مصاريف نقل مستلزمات الشركه",300,0,"قيمة مشال الإنتريه",0]
[14,1,"2019-10-31",3262,"مصاريف إنتقالات موظفين عموميه",25,0,"إنتقالات مصطفى الساعي لشراء سماعات",0]
[15,1,"2019-10-31",1331,"سلــــــف موظفين",1100,0,"سلف من مرتب أكتوبر 600 ساره سمير زياده + 500 دعاء عيد عبدالرحمن",0]
[16,1,"2019-10-31",1126,"ستائـــــــــــر",2800,0,"قيمة ستائر وتابلوهات باللوجو",0]
[17,1,"2019-10-31",1211,"خزينة الشركه - جنيه مصري",0,31840.25,"قيمة مصاريف الخزينه عن شهر أكتوبر",0]
[null,null,null,null,"الإجمـــــــــــــــــــالي",31840.25,31840.25,"فقط واحد وثلاثون ألف وثمانمائة وأربعون جنيهاً وخمسة وعشرون قرشاً"]
[null,2,"2019-10-31",1353,"شركات شقيقه - شركة عميلي للسياحه",124378.8,0,"قيمة 7773.675$","قيمة مسحوبات على بنك مصر365  "]
[33,2,"2019-10-31",1353,"شركات شقيقه - شركة عميلي للسياحه",1593.75,0,"قيمة 375 ريال سعودي","شركة ثعلوب للسياحه والسفر"]
[34,2,"2019-10-31",1353,"شركات شقيقه - شركة عميلي للسياحه",39121.25,0,"قيمة 9205 ريال سعودي","شركة العطار للسياحه والسفر"]
[null,2,"2019-10-31",1322,"عهــــد إداره",9440,0,"قيمة 590 دولار أمريكي","عهدة نانسي بهيج"]
[35,2,"2019-10-31",1321,"عهـد موظفين",2672,0,"قيمة 167 دولار أمريكي","عهدة أحمد الحسيني"]
[36,2,"2019-10-31",1321,"عهـد موظفين",6800,0,"قيمة 425 دولار أمريكي","عهدة ريهام"]
[37,2,"2019-10-31",4111,"إيرادات كروت يلا سفـــــر  للشركه",0,168245.8,0,0]
[null,2,"2019-10-31",1311,"عملاء كارت يلا سفــــــــــــــــــــر",0,4800,"قيمة 300دولار أمريكي","Mohamed Shawkat Elbasry"]
[38,2,"2019-10-31",1311,"عملاء كارت يلا سفــــــــــــــــــــر",0,400,"قيمة 25دولار أمريكي","Heba Beamer"]
[39,2,"2019-10-31",1311,"عملاء كارت يلا سفــــــــــــــــــــر",0,7520,"قيمة 470دولار أمريكي","Taghred Elsaman"]
[null,2,"2019-10-31",1311,"عملاء كارت يلا سفــــــــــــــــــــر",0,3040,"قيمة 190 دولار أمريكي","Saed Sangoura"]
[48,null,null,null,"الإجمـــــــــــــــــــالي",184005.8,184005.8,"فقط مائة وأربعة وثمانون ألف وخمسة جنيهاً وثمانون قرشاً"]
[58,3,"2019-10-14",1211,"خزينة الشركه - جنيه مصري",7400,0,"إيراد حجزالعميله مدام نشوى في فندق الحياه ريجنسي",0]
[59,3,"2019-10-14",1311,"عملاء كارت يلا سفــــــــــــــــــــر",0,7400,"إيراد حجزالعميله مدام نشوى في فندق الحياه ريجنسي",0]
[74,null,null,null,"الإجمـــــــــــــــــــالي",7400,7400,"فقط سبعة آلاف وأربعمائة جنيهاً"]
[null,4,"2019-10-14",1311,"عملاء كارت يلا سفــــــــــــــــــــر",7400,0,"إيراد حجزالعميله مدام نشوى في فندق الحياه ريجنسي",0]
[83,4,"2019-10-14",4211,"إيرادات حجز فنادق عملاء مدفوعه",0,7400,"إيراد حجزالعميله مدام نشوى في فندق الحياه ريجنسي",0]
[98,null,null,null,"الإجمـــــــــــــــــــالي",7400,7400,"فقط سبعة آلاف وأربعمائة جنيهاً"]
[null,5,"2019-10-14",3131,"مصاريف حجز فنادق عملاء مدفوعه",6850,0,"قيمة مصروفات حجز العميله مدام نشوى في فندق الحياه ريجنسي",0]
[110,5,"2019-10-14",1211,"خزينة الشركه - جنيه مصري",0,6850,"قيمة مصروفات حجز العميله مدام نشوى في فندق الحياه ريجنسي",0]
[null,null,null,null,"الإجمـــــــــــــــــــالي",6850,6850,"فقط ستة آلاف وثمانمائة وخمسون جنيهاً"]
[null,6,"2019-10-14",1353,"شركات شقيقه - شركة عميلي للسياحه",3213.6,0,"قيمة سداد العميل حسين هندي لإيراد حجزه في فندق الحياه ريجنسي 206$","قيمة مسحوبات على بنك مصر365  "]
[null,6,"2019-10-14",1211,"خزينة الشركه - جنيه مصري",1600,0,"قيمة سداد العميل حسين هندي لإيراد حجزه في فندق الحياه ريجنسي 100$",0]
[null,6,"2019-10-14",1311,"عملاء كارت يلا سفــــــــــــــــــــر",0,4813.6000000000004,"قيمة إيراد حجز العميل حسين هندي  في فندق الحياه ريجنسي 306$",0]
[null,null,null,null,"الإجمـــــــــــــــــــالي",4813.6000000000004,4813.6000000000004,"فقط أربعة آلاف وثمانمائة وثلاثة عشر جنيهاً وستون قرشاً"]
[null,7,"2019-10-14",1311,"عملاء كارت يلا سفــــــــــــــــــــر",4813.6000000000004,0,"قيمة إيراد حجز العميل حسين هندي في فندق الحياه ريجنسي 306$",0]
[null,7,"2019-10-14",4211,"إيرادات حجز فنادق عملاء مدفوعه",0,4813.6000000000004,"قيمة إيراد حجز العميل حسين هندي في فندق الحياه ريجنسي 306$",0]
[null,null,null,null,"الإجمـــــــــــــــــــالي",4813.6000000000004,4813.6000000000004,"فقط أربعة آلاف وثمانمائة وثلاثة عشر جنيهاً وستون قرشاً"]
[null,8,"2019-10-14",3131,"مصاريف حجز فنادق عملاء مدفوعه",4800,0,"قيمة مصروفات حجز العميل حسين هندي في فندق الحياه ريجنسي",0]
[null,8,"2019-10-14",1353,"شركات شقيقه - شركة عميلي للسياحه",0,4800,"قيمة مصروفات حجز العميل حسين هندي في فندق الحياه ريجنسي",0]
[null,null,null,null,"الإجمـــــــــــــــــــالي",4800,4800,"فقط أربعة آلاف وثمانمائة جنيهاً"]
[null,9,"2019-10-19",1353,"شركات شقيقه - شركة عميلي للسياحه",670.8,0,"قيمة سداد العميل سلطان الحكمي لإيراد حجزه في لاونج هوتيل سويت 43$","قيمة مسحوبات على بنك مصر 365"]
[null,9,"2019-10-19",1311,"عملاء كارت يلا سفــــــــــــــــــــر",0,670.8,"قيمة سداد العميل سلطان الحكمي لإيراد حجزه في لاونج هوتيل سويت 43$",0]
[null,null,null,null,"الإجمـــــــــــــــــــالي",670.8,670.8,"فقط ستمائة وسبعون جنيهاً وثمانون قرشاً"]
[null,10,"2019-10-19",1311,"عملاء كارت يلا سفــــــــــــــــــــر",670.8,0,"قيمة إيراد حجز العميل سلطان الحكمي في لاونج هوتيل سويت43$",0]
[null,10,"2019-10-19",4211,"إيرادات حجز فنادق عملاء مدفوعه",0,670.8,"قيمة إيراد حجز العميل سلطان الحكمي في لاونج هوتيل سويت43$",0]
[null,null,null,null,"الإجمـــــــــــــــــــالي",670.8,670.8,"فقط ستمائة وسبعون جنيهاً وثمانون قرشاً"]
[null,11,"2019-10-19",3131,"مصاريف حجز فنادق عملاء مدفوعه",608,0,"قيمة مصروف حجز العميل حسين هندي","38$"]
[null,11,"2019-10-19",1353,"شركات شقيقه - شركة عميلي للسياحه",0,608,"سداد مصروف حجز العميل حسين هندي","38$"]
[null,null,null,null,"الإجمـــــــــــــــــــالي",608,608,"فقط ستمائة وثمانية جنيهاً"]
[null,12,"2019-10-19",1353,"شركات شقيقه - شركة عميلي للسياحه",204,0,"قيمة 48 ريال بروفت العميله نسرين اليماني",0]
[null,12,"2019-10-19",1311,"عملاء كارت يلا سفــــــــــــــــــــر",0,204,"قيمة 48 ريال بروفت العميله نسرين اليماني","العميله نسرين اليماني"]
[null,12,"2019-10-19",1311,"عملاء كارت يلا سفــــــــــــــــــــر",204,0,"قيمة 48 ريال بروفت العميله نسرين اليماني","العميله نسرين اليماني"]
[null,12,"2019-10-19",4212,"إيرادات حجز طيران عملاء مدفوعه",0,204,"قيمة 48 ريال بروفت العميله نسرين اليماني",0]
[null,null,null,null,"الإجمـــــــــــــــــــالي",408,408,"فقط أربعمائة وثمانية جنيهاً"]
[null,13,"2019-10-15",1353,"شركات شقيقه - شركة عميلي للسياحه",1117.75,0,"قيمة 263 ريال بروفت العميل زياد بصري",0]
[null,13,"2019-10-15",1311,"عملاء كارت يلا سفــــــــــــــــــــر",0,1117.75,"قيمة 263 ريال بروفت العميل زياد بصري","العميل زياد بصري"]
[null,13,"2019-10-15",1311,"عملاء كارت يلا سفــــــــــــــــــــر",1117.75,0,"قيمة 263 ريال بروفت العميل زياد بصري","العميل زياد بصري"]
[null,13,"2019-10-15",4212,"إيرادات حجز طيران عملاء مدفوعه",0,1117.75,"قيمة 263 ريال بروفت العميل زياد بصري",0]
[null,null,null,null,"الإجمـــــــــــــــــــالي",2235.5,2235.5,"فقط  ألفان ومائتان وخمسة وثلاثون جنيهاً وخمسون قرشاً"]
[null,14,"2019-10-08",1211,"خزينة الشركه - جنيه مصري",31290.25,0,"قيمة تمويل الخزينة من الحساب الشخصي لنانسي بهيج",0]
[null,14,"2019-10-08",2631,"جاري شركــــــــاء دائن  نانسي بهيج",0,31290.25,"قيمة تمويل الخزينة من الحساب الشخصي لنانسي بهيج",0]
[null,null,null,null,"الإجمـــــــــــــــــــالي",31290.25,31290.25,"فقط واحد وثلاثون ألف ومائتان وتسعون جنيهاً وخمسة وعشرون قرشاً"]
[null,15,"2019-10-26",1353,"شركات شقيقه - شركة عميلي للسياحه",3057.6,0,"قيمة إيراد حجز العميل حمد الفارس في فندق جاردن بلاس","191.1$"]
[null,15,"2019-10-26",1311,"عملاء كارت يلا سفــــــــــــــــــــر",0,3057.6,"قيمة إيراد حجز العميل حمد الفارس في فندق جاردن بلاس","191.1$"]
[null,null,null,null,"الإجمـــــــــــــــــــالي",3057.6,3057.6,"فقط ثلاثة آلاف وسبعة وخمسون جنيهاً وستون قرشاً"]
[null,16,"2019-10-26",1311,"عملاء كارت يلا سفــــــــــــــــــــر",3057.6,0,"قيمة إيراد حجز العميل حمد الفارس في فندق جاردن بلاس",0]
[null,16,"2019-10-26",4211,"إيرادات حجز فنادق عملاء مدفوعه",0,3057.6,"قيمة إيراد حجز العميل حمد الفارس في فندق جاردن بلاس",0]
[null,null,null,null,"الإجمـــــــــــــــــــالي",3057.6,3057.6,"فقط ثلاثة آلاف وسبعة وخمسون جنيهاً وستون قرشاً"]
[null,17,"2019-10-26",3131,"مصاريف حجز فنادق عملاء مدفوعه",2890,0,"قيمة مصروف حجز العميل حمد الفارس "," ريال سعودي680"]
[null,17,"2019-10-26",1353,"شركات شقيقه - شركة عميلي للسياحه",0,2890,"قيمة مصروف حجز العميل حمد الفارس "," ريال سعودي680"]
[null,null,null,null,"الإجمـــــــــــــــــــالي",2890,2890,"فقط  ألفان وثمانمائة وتسعون جنيهاً"]
[null,18,"2019-10-26",1353,"شركات شقيقه - شركة عميلي للسياحه",12580,0,"قيمة إيراد طيران العميل محمد الأسود  فايل رقم 8 ","شركة ثعلوب"]
[null,18,"2019-10-26",1311,"عملاء كارت يلا سفــــــــــــــــــــر",0,12580,"قيمة إيراد طيران العميل محمد الأسود  فايل رقم 9","العميل محمد علي الأسود"]
[null,null,null,null,"الإجمـــــــــــــــــــالي",12580,12580,"فقط إثنى عشر ألف وخمسمائة وثمانون جنيهاً"]
[null,19,"2019-10-31",1311,"عملاء كارت يلا سفــــــــــــــــــــر",12580,0,"قيمة إيراد طيران العميل محمد الأسود  فايل رقم 8 ",0]
[null,19,"2019-10-31",4212,"إيرادات حجز طيران عملاء مدفوعه",0,12580,"قيمة إيراد طيران العميل محمد الأسود  فايل رقم 8 ",0]
[null,null,null,null,"الإجمـــــــــــــــــــالي",12580,12580,"فقط إثنى عشر ألف وخمسمائة وثمانون جنيهاً"]
[null,20,"2019-10-31",3132,"مصاريف حجز طيران عملاء مدفوعه",12580,0,"قيمة مصروف طيران العميل محمد الأسود  فايل رقم 8 "," ريال سعودي2960"]
[null,20,"2019-10-31",3142,"مصاريف حجز تذاكر طيران مجانيه عملاء الشركه",8245,0,"قيمة مصروف تذاكر طيران العميل محمد الأسود "," ريال سعودي1940"]
[null,20,"2019-10-31",1353,"شركات شقيقه - شركة عميلي للسياحه",0,20825,"قيمة مصروف تذاكر طيران العميل محمد الأسود ","شركة العطار للسياحه"]
[null,null,null,null,"الإجمـــــــــــــــــــالي",20825,20825,"فقط عشرون ألف وثمانمائة وخمسة وعشرون جنيهاً"]
[null,21,"2019-10-31",1353,"شركات شقيقه - شركة عميلي للسياحه",6613,0,"قيمة إيراد حجز العميل محمد الأسود شقه فايل رقم 9","شركة ثعلوب للسياحه"]
[null,21,"2019-10-31",1311,"عملاء كارت يلا سفــــــــــــــــــــر",0,6613,"قيمة إيراد حجز العميل محمد الأسود شقه فايل رقم 9","العميل محمد علي الأسود"]
[null,null,"2019-10-31",null,"الإجمـــــــــــــــــــالي",6613,6613,"فقط ستة آلاف وستمائة وثلاثة عشر جنيهاً"]
[null,22,"2019-10-31",1311,"عملاء كارت يلا سفــــــــــــــــــــر",6613,0,"قيمة إيراد حجز العميل محمد الأسود شقه  فايل رقم 9",0]
[null,22,"2019-10-31",4211,"إيرادات حجز فنادق عملاء مدفوعه",0,6613,"قيمة إيراد حجز العميل محمد الأسود شقه  فايل رقم 9",0]
[null,null,null,null,"الإجمـــــــــــــــــــالي",6613,6613,"فقط ستة آلاف وستمائة وثلاثة عشر جنيهاً"]
[null,23,"2019-10-31",3131,"مصاريف حجز فنادق عملاء مدفوعه",6963.07,0,"قيمة مصروف حجز العميل محمد الأسود  فايل رقم 9 ",0]
[null,23,"2019-10-31",2516,"موردين كردت كارت الشركه",0,6963.07,"قيمة مصروف حجز العميل محمد الأسود  فايل رقم 10","كردت كارت نانسي بنك كريدي أجريكول"]
[null,null,null,null,"الإجمـــــــــــــــــــالي",6963.07,6963.07,"فقط ستة آلاف وتسعمائة وثلاثة وستون جنيهاً وسبعة قرشاً"]
[null,24,"2019-10-31",1211,"خزينة الشركه - جنيه مصري",21550,0,"قيمة إيراد حجز العميل دسوقي عبد الواحد  فايل رقم 10",0]
[null,24,"2019-10-31",1311,"عملاء كارت يلا سفــــــــــــــــــــر",0,21550,"قيمة إيراد حجز العميل دسوقي عبد الواحد  فايل رقم 10","العميل دسوقي عبدالواحد"]
[null,null,null,null,"الإجمـــــــــــــــــــالي",21550,21550,"فقط واحد وعشرون ألف وخمسمائة وخمسون جنيهاً"]
[null,25,"2019-10-31",1311,"عملاء كارت يلا سفــــــــــــــــــــر",21550,0,"قيمة إيراد حجز العميل دسوقي عبد الواحد  فايل رقم 10","العميل دسوقي عبد الواحد"]
[null,25,"2019-10-31",4211,"إيرادات حجز فنادق عملاء مدفوعه",0,21550,"قيمة إيراد حجز العميل دسوقي عبد الواحد  فايل رقم 10",0]
[null,null,null,null,"الإجمـــــــــــــــــــالي",21550,21550,"فقط واحد وعشرون ألف وخمسمائة وخمسون جنيهاً"]
[null,26,"2019-10-31",3131,"مصاريف حجز فنادق عملاء مدفوعه",19915,0,"قيمة مصروف حجز العميل دسوقي عبد الواحد  فايل رقم 10",0]
[null,26,"2019-10-31",1353,"شركات شقيقه - شركة عميلي للسياحه",0,19915,"قيمة مصروف حجز العميل دسوقي عبد الواحد  فايل رقم 10",0]
[null,null,null,null,"الإجمـــــــــــــــــــالي",19915,19915,"فقط تسعة عشر ألف وتسعمائة وخمسة عشر جنيهاً"]
[null,27,"2019-10-31",1354,"جاري شركاء مدين نانسي بهيج",21550,0,"قيمة توريد مبلغ إيراد العميل دسوقي عبدالواحد لنانسي بهيج",0]
[null,27,"2019-10-31",1211,"خزينة الشركه - جنيه مصري",0,21550,"قيمة توريد مبلغ إيراد العميل دسوقي عبدالواحد لنانسي بهيج",0]
[null,null,null,null,"الإجمـــــــــــــــــــالي",21550,21550,"فقط واحد وعشرون ألف وخمسمائة وخمسون جنيهاً"]
[null,28,"2019-10-31",1353,"شركات شقيقه - شركة عميلي للسياحه",4462.5,0,"قيمة إيراد فرق ليالي مجانيه العميل سعد صالح  فايل رقم 11","1050 SAR"]
[null,28,"2019-10-31",1311,"عملاء كارت يلا سفــــــــــــــــــــر",0,4462.5,"قيمة إيراد فرق ليالي مجانيه العميل سعد صالح  فايل رقم 11","العميل سعد صالح"]
[null,null,null,null,"الإجمـــــــــــــــــــالي",4462.5,4462.5,"فقط أربعة آلاف وأربعمائة واثنان وستون جنيهاً وخمسون قرشاً"]
[null,29,"2019-10-31",1311,"عملاء كارت يلا سفــــــــــــــــــــر",4462.5,0,"قيمة إيراد فرق ليالي مجانيه العميل سعد صالح  فايل رقم 11","العميل سعد صالح"]
[null,29,"2019-10-31",4221,"إيراد فرق ليالي مجانيه عملاء الشركه",0,4462.5,"قيمة إيراد فرق ليالي مجانيه العميل سعد صالح  فايل رقم 11",0]
[null,null,null,null,"الإجمـــــــــــــــــــالي",4462.5,4462.5,"فقط أربعة آلاف وأربعمائة واثنان وستون جنيهاً وخمسون قرشاً"]
[null,30,"2019-10-31",3141,"مصاريف حجز  ليالي مجانيه عملاء الشركه",5920,0,"قيمة مصاريف ليالي مجانيه العميل سعد صالح  فايل رقم 11","370$"]
[null,30,"2019-10-31",1353,"شركات شقيقه - شركة عميلي للسياحه",0,5920,"قيمة مصاريف ليالي مجانيه العميل سعد صالح  فايل رقم 11","370$"]
[null,null,null,null,"الإجمـــــــــــــــــــالي",5920,5920,"فقط خمسة آلاف وتسعمائة وعشرون جنيهاً"]
[null,31,"2019-10-31",1353,"شركات شقيقه - شركة عميلي للسياحه",15142.75,0,"قيمة إيراد حجز العميله تلا محمد البصري  فايل رقم 12","شركة العطار للسياحه 3563ريال سعودي"]
[null,31,"2019-10-31",1311,"عملاء كارت يلا سفــــــــــــــــــــر",0,15142.75,"قيمة إيراد حجز العميله تلا محمد البصري  فايل رقم 12","العميل محمد البصري"]
[null,null,null,null,"الإجمـــــــــــــــــــالي",15142.75,15142.75,"فقط خمسة عشر ألف ومائة واثنان وأربعون جنيهاً وخمسة وسبعون قرشاً"]
[null,32,"2019-10-31",1311,"عملاء كارت يلا سفــــــــــــــــــــر",15142.75,0,"قيمة إيراد حجز العميل محمد البصري  فايل رقم 12","العميل محمد البصري"]
[null,32,"2019-10-31",4211,"إيرادات حجز فنادق عملاء مدفوعه",0,15142.75,"قيمة إيراد فرق حجز العميل محمد البصري  فايل رقم 12",0]
[null,null,null,null,"الإجمـــــــــــــــــــالي",15142.75,15142.75,"فقط خمسة عشر ألف ومائة واثنان وأربعون جنيهاً وخمسة وسبعون قرشاً"]
[null,33,"2019-10-31",3131,"مصاريف حجز فنادق عملاء مدفوعه",15200,0,"قيمة حجز العميل محمد البصري  فايل رقم 12",0]
[null,33,"2019-10-31",1353,"شركات شقيقه - شركة عميلي للسياحه",0,15200,"قيمة حجز العميل محمد البصري  فايل رقم 12",0]
[null,null,null,null,"الإجمـــــــــــــــــــالي",15200,15200,"فقط خمسة عشر ألف ومائتان جنيهاً"]
[null,34,"2019-10-31",1354,"جاري شركاء مدين نانسي بهيج",43200,0,"قيمة توريدات للشركه من مستحقاتنا لدى شركة عميلي ليد نانسي بهيج","2700$"]
[null,34,"2019-10-31",1354,"جاري شركاء مدين نانسي بهيج",27376,0,"قيمة توريدات للشركه من مستحقاتنا لدى شركة عميلي ليد نانسي بهيج","1711$"]
[null,34,"2019-10-31",1354,"جاري شركاء مدين نانسي بهيج",22160,0,"قيمة توريدات للشركه من مستحقاتنا لدى شركة عميلي ليد نانسي بهيج","1385$"]
[null,34,"2019-10-31",1354,"جاري شركاء مدين نانسي بهيج",1600,0,"قيمة توريدات لخزينة الشركه ","100$"]
[null,34,"2019-10-31",1353,"شركات شقيقه - شركة عميلي للسياحه",null,92736,"قيمة توريدات للشركه من مستحقاتنا لدى شركة عميلي ليد نانسي بهيج",0]
[null,34,"2019-10-31",1211,"خزينة الشركه - جنيه مصري",null,1600,"قيمة ماتم سداده لنانسي بهيج من توريدات الخزينه",0]
[]
[null,null,null,null,"الإجمـــــــــــــــــــالي",94336,94336,"فقط أربعة وتسعون ألف وثلاثمائة وستة وثلاثون جنيهاً"]
[null,35,"2019-10-31",3111,"مصاريف مرتبات ومكافآت  ",61365,null,"قيمة مرتبات العاملين عن شهر أكتوبر",0]
[null,35,"2019-10-31",2641,"مرتبات مستحقه",0,59465,"قيمة مرتبات العاملين المستحقه عن شهر أكتوبر",0]
[null,35,"2019-10-31",3111,"مصاريف مرتبات ومكافآت  ",0,700,"غياب العاملين خصما من حساب المرتبات",0]
[null,35,"2019-10-31",3111,"مصاريف مرتبات ومكافآت  ",0,100,"خصومات العاملين خصما من حساب المرتبات",0]
[null,35,"2019-10-31",1331,"سلــــــف موظفين",0,500,"سداد سلفه دعاء",0]
[null,35,"2019-10-31",1331,"سلــــــف موظفين",0,600,"سداد سلفه سارة زياده",0]
[null,null,null,null,"الإجمـــــــــــــــــــالي",61365,61365,"فقط واحد وستون ألف وثلاثمائة وخمسة وستون جنيهاً"]
[null,36,"2019-10-31",1341,"تأمينات لدى الغير",17500,0,"قيمة تأمين مقر الشركه ",0]
[null,36,"2019-10-31",3261,"مصاريف نقل مستلزمات الشركه",2150,0,"نقل مكاتب وكمبيوترات الشركه",0]
[null,36,"2019-10-31",32704,"مصاريف أدوات كتابيه عموميه",450,0,"قيمة ألات حاسبه وأدوات كتابيه",0]
[null,36,"2019-10-31",3128,"مصاريف كمبيوتر وشبكات ",2400,0,"قيمة 3 أسابيع من سيرفر VPN",150]
[null,36,"2019-10-31",3126,"مصاريف إتصالات إنترنت ",9350,0,"شحن خطوط الإتصال من 10/08 حتى 11/03",2200]
[null,36,"2019-10-31",2632,"جاري شركــــــــاء دائن  إبراهيم عطوه",0,31850,"قيمة مساهمة الشريك إبراهيم عطوه",0]
[null,null,null,null,"الإجمـــــــــــــــــــالي",31850,31850,"فقط واحد وثلاثون ألف وثمانمائة وخمسون جنيهاً"]
[null,37,"2019-10-31",1354,"جاري شركاء مدين نانسي بهيج",92534.99]
[null,37,"2019-10-31",1355,"جاري شركاء مدين إبراهيم عطوه",33079.74]
[null,37,"2019-10-31",1353,"شركات شقيقه - شركة عميلي للسياحه",null,33079.74]
[null,37,"2019-10-31",2631,"جاري شركــــــــاء دائن  نانسي بهيج",null,92534.99]
[null,null,null,null,"الإجمـــــــــــــــــــالي",125614.73000000001,125614.73000000001,"فقط مائة وخمسة وعشرون ألف وستمائة وأربعة عشر جنيهاً وثلاثة وسبعون قرشاً"]

{"sheet":"اليوميه العامه","index":1,"n_rows":43,"n_cols":345,"rows_kept":43,"cut":false,"hidden":false,"merged":[[2,81,2,82],[2,79,2,80],[3,47,3,48],[2,47,2,48],[2,45,2,46],[2,43,2,44],[2,35,2,36],[2,33,2,34],[3,13,3,14],[2,13,2,14],[2,73,2,74],[2,75,2,76],[2,77,2,78],[3,75,3,76],[3,77,3,78],[3,79,3,80],[3,81,3,82],[3,65,3,66],[3,67,3,68],[3,69,3,70],[3,71,3,72],[3,73,3,74],[3,55,3,56],[3,57,3,58],[2,89,2,90],[2,87,2,88],[2,85,2,86],[2,83,2,84],[2,99,2,100],[2,97,2,98],[2,95,2,96],[2,93,2,94],[2,91,2,92],[2,343,2,344],[2,325,2,326],[2,327,2,328],[2,329,2,330],[2,331,2,332],[2,333,2,334],[2,335,2,336],[2,337,2,338],[2,339,2,340],[2,341,2,342],[2,307,2,308],[2,309,2,310],[2,311,2,312],[2,313,2,314],[2,315,2,316],[2,317,2,318],[2,319,2,320],[2,321,2,322],[2,323,2,324],[2,289,2,290],[2,291,2,292],[2,293,2,294],[2,295,2,296],[2,297,2,298],[2,299,2,300],[2,301,2,302],[2,303,2,304],[2,305,2,306],[2,271,2,272],[2,273,2,274],[2,275,2,276],[2,277,2,278],[2,279,2,280],[2,281,2,282],[2,283,2,284],[2,285,2,286],[2,287,2,288],[2,253,2,254],[2,255,2,256],[2,257,2,258],[2,259,2,260],[2,261,2,262],[2,263,2,264],[2,265,2,266],[2,267,2,268],[2,269,2,270],[2,235,2,236],[2,237,2,238],[2,239,2,240],[2,241,2,242],[2,243,2,244],[2,245,2,246],[2,247,2,248],[2,249,2,250],[2,251,2,252],[2,217,2,218],[2,219,2,220],[2,221,2,222],[2,223,2,224],[2,225,2,226],[2,227,2,228],[2,229,2,230],[2,231,2,232],[2,233,2,234],[2,199,2,200],[2,201,2,202],[2,203,2,204],[2,205,2,206],[2,207,2,208],[2,209,2,210],[2,211,2,212],[2,213,2,214],[2,215,2,216],[2,181,2,182],[2,183,2,184],[2,185,2,186],[2,187,2,188],[2,189,2,190],[2,191,2,192],[2,193,2,194],[2,195,2,196],[2,197,2,198],[2,163,2,164],[2,165,2,166],[2,167,2,168],[2,169,2,170],[2,171,2,172],[2,173,2,174],[2,175,2,176],[2,177,2,178],[2,179,2,180],[2,107,2,108],[2,145,2,146],[2,147,2,148],[2,149,2,150],[2,151,2,152],[2,153,2,154],[2,155,2,156],[2,161,2,162],[2,127,2,128],[2,129,2,130],[2,131,2,132],[2,133,2,134],[2,135,2,136],[2,141,2,142],[2,143,2,144],[2,65,2,66],[2,67,2,68],[3,309,3,310],[3,311,3,312],[3,313,3,314],[3,315,3,316],[3,317,3,318],[3,299,3,300],[3,301,3,302],[3,303,3,304],[3,305,3,306],[3,307,3,308],[3,289,3,290],[3,291,3,292],[2,109,2,110],[2,111,2,112],[2,117,2,118],[2,119,2,120],[2,121,2,122],[2,123,2,124],[2,125,2,126],[2,101,2,102],[2,103,2,104],[2,105,2,106],[3,343,3,344],[3,339,3,340],[3,341,3,342],[3,333,3,334],[3,335,3,336],[3,337,3,338],[3,319,3,320],[3,321,3,322],[3,323,3,324],[3,325,3,326],[3,327,3,328],[3,329,3,330],[3,331,3,332],[3,293,3,294],[3,295,3,296],[3,297,3,298],[3,279,3,280],[3,281,3,282],[3,283,3,284],[3,285,3,286],[3,287,3,288],[3,269,3,270],[3,271,3,272],[3,273,3,274],[3,275,3,276],[3,277,3,278],[3,259,3,260],[3,261,3,262],[3,263,3,264],[3,265,3,266],[3,267,3,268],[3,249,3,250],[3,251,3,252],[3,253,3,254],[3,255,3,256],[3,257,3,258],[3,239,3,240],[3,241,3,242],[3,243,3,244],[3,245,3,246],[3,247,3,248],[3,229,3,230],[3,231,3,232],[3,233,3,234],[3,235,3,236],[3,237,3,238],[3,219,3,220],[3,221,3,222],[3,223,3,224],[3,225,3,226],[3,227,3,228],[3,209,3,210],[3,211,3,212],[3,213,3,214],[3,215,3,216],[3,217,3,218],[3,199,3,200],[3,201,3,202],[3,203,3,204],[3,205,3,206],[3,207,3,208],[3,189,3,190],[3,191,3,192],[3,193,3,194],[3,195,3,196],[3,197,3,198],[3,179,3,180],[3,181,3,182],[3,183,3,184],[3,185,3,186],[3,187,3,188],[3,169,3,170],[3,171,3,172],[3,173,3,174],[3,175,3,176],[3,177,3,178],[3,163,3,164],[3,165,3,166],[3,167,3,168],[3,97,3,98],[3,95,3,96],[3,99,3,100],[3,159,3,160],[3,161,3,162],[3,149,3,150],[3,151,3,152],[3,153,3,154],[3,155,3,156],[3,157,3,158],[3,139,3,140],[3,141,3,142],[3,143,3,144],[3,145,3,146],[3,147,3,148],[3,131,3,132],[3,133,3,134],[3,135,3,136],[3,137,3,138],[3,119,3,120],[3,101,3,102],[3,103,3,104],[3,105,3,106],[3,107,3,108],[3,89,3,90],[3,91,3,92],[3,93,3,94],[3,111,3,112],[3,109,3,110],[3,85,3,86],[3,87,3,88],[3,59,3,60],[3,63,3,64],[3,49,3,50],[3,51,3,52],[3,53,3,54],[3,41,3,42],[3,43,3,44],[3,45,3,46],[2,5,2,6],[3,5,3,6],[3,7,3,8],[3,31,3,32],[3,33,3,34],[3,35,3,36],[3,37,3,38],[3,19,3,20],[2,37,2,38],[2,39,2,40],[2,41,2,42],[2,49,2,50],[2,55,2,56],[2,57,2,58],[2,59,2,60],[2,63,2,64],[1,1,1,40],[42,1,42,3],[3,21,3,22],[3,23,3,24],[3,25,3,26],[3,27,3,28],[3,9,3,10],[3,11,3,12],[2,7,2,8],[2,9,2,10],[2,11,2,12],[2,21,2,22],[2,15,2,16],[2,17,2,18],[2,19,2,20],[2,23,2,24],[2,25,2,26],[2,27,2,28],[2,29,2,30],[2,31,2,32],[3,39,3,40],[3,15,3,16],[3,17,3,18],[3,29,3,30]]}
[]
[null,"اليوميـــــــــــــــة العامه لشهر أكتوبر2019"]
[null,null,null,null,null,null,null,1111,null,1121,null,1122,null,1123,null,1124,null,1125,null,1126,null,1129,null,1131,null,1132,null,1133,null,1134,null,1135,null,1136,null,1141,null,1151,null,1211,null,1212,null,1221,null,1231,null,1241,null,1311,null,1312,null,1313,null,1314,null,1321,null,1322,null,1323,null,1331,null,1332,null,1341,null,1351,null,1352,null,1353,null,1354,null,1355,null,2111,null,2112,null,2121,null,2122,null,2211,null,2212,null,2311,null,2321,null,2322,null,null,null,null,null,null,null,null,null,null,null,null,null,2511,null,2512,null,2513,null,2514,null,2515,null,2516,null,null,null,null,null,null,null,null,null,null,null,2631,null,null,null,2641,null,null,null,null,null,null,null,null,null,null,null,null,null,3111,null,3121,null,3122,null,null,null,null,null,null,null,null,null,null,null,3128,null,3131,null,3132,null,null,null,null,null,null,null,null,null,null,null,3141,null,3142,null,null,null,null,null,null,null,null,null,null,null,null,null,null,null,null,null,null,null,null,null,null,null,null,null,null,null,null,null,null,null,null,null,null,null,null,null,null,null,null,null,null,null,null,null,null,null,null,null,null,null,3232,null,null,null,3241,null,3251,null,null,null,null,null,3262,null,null,null,null,null,32703,null,32704,null,32705,null,32706,null,null,null,null,null,32709,null,null,null,null,null,null,null,32713,null,null,null,null,null,null,null,null,null,4211,null,4212,null,null,null,null,null,null,null,null,null,null,null,4221]
[null,"رقم القيد","التاريخ","البيــــــــــان"," الفرق","الإجمـــالي",null,"أرض 1",null,"أثاث مكاتب",null,"سجاجيد",null,"خزائن",null,"نجف وأبليكات",null,"أنتريهات",null,"ستائـــــــــــر",null,"تجهيزات مكاتب أخرى",null,"تكييفات ومراوح",null,"أجهزة موبايل",null,"ماكينات تصوير",null,"أجهزة كمبيوتر",null,"معدات كمبيوتر",null,"برامج ومواقع",null,"سياره 1",null,"إستثمار طويل الأجل 1",null,"خزينة الشركه - جنيه مصري",null,"خزينة الشركه - دولار أمريكي",null,"أوراق قبض (كردت كارت بنك مصر)  دولار أمريكي",null,"بنك مصر ",null,"وديعة بنك 1",null,"عملاء كارت يلا سفــــــــــــــــــــر",null,"عمــــــلاء وكالات",null,"عمــــــلاء حجز كاش ",null,"عملاء بيع خارجي Corprate",null,"عهـد موظفين",null,"عهــــد إداره",null,"عهد وكالات",null,"سلــــــف موظفين",null,"سلــــــف إداره",null,"تأمينات لدى الغير",null,"مصروفات مدفوعه مقدماً",null,"إيرادات مستحقه",null,"شركات شقيقه - شركة عميلي للسياحه",null,"جاري شركاء مدين نانسي بهيج",null,"جاري شركاء مدين إبراهيم عطوه",null,"مســــــاهمة الشريك نانسي بهيج",null,"مساهمة الشريك إبراهيم عطوه",null,"أربـــاح وخسائر العام",null,"أرباح وخسائر سنوات سابقه",null,"إحتياطي عام 2.5%",null,"احتياطى شراء اصول ثابتة",null,"مخصص ضرائب مستحقه",null,"مخصص اهلاك مبانى",null,"مخصص اهلاك الات ومعدات",null,"مخصص اهلاك اثاث",null,"مخصص اهلاك سيارات",null,"مخصص ديون مشكوك فيها",null,"مخصص هبوط استثمارات",null,"قرض طويل الأجل 1",null,"التزامات طويلة الأجل 1",null,"موردين فنادق",null,"موردين شركات سياحه",null,"موردين شركات طيران",null,"موردين شركات نقل سياحي",null,"موردين تأشيرات",null,"موردين كردت كارت الشركه",null,"موردين تشغيل",null,"شيكات (دفع ) تحت التحصيل ",null,"تأمينات مستحقه",null,"ضــــــــرائب دائنه",null,"ايرادات مستحقة دائنه",null,"جاري شركــــــــاء دائن  نانسي بهيج",null,"جاري شركــــــــاء دائن  إبراهيم عطوه",null,"مرتبات مستحقه",null,"إيجـــــــــــارات مستحقه",null,"مصاريف مراجعه مستحقه",null,"مصــــــاريف إدارية مستحقه",null,"فواتير تليفونات مستحقه",null,"فواتير موبايلات مستحقه",null,"فواتير موبايلات مستحقه",null,"مصاريف مرتبات ومكافآت  ",null,"مصاريف تليفونات أرضي",null,"مصاريف مكالمات موبايلات",null,"مصاريف خطوط شحن ",null,"مصاريف كروت شحن سعودي",null,"مصاريف كروت شحن مصري",null,"مصاريف إتصالات إنترنت ",null,"مصاريف تركيبات تليفونات",null,"مصاريف كمبيوتر وشبكات ",null,"مصاريف حجز فنادق عملاء مدفوعه",null,"مصاريف حجز طيران عملاء مدفوعه",null,"مصاريف إنتقال وتوصيل عملاء  مدفوعه",null,"مصاريف تأشيرات عملاء مدفوعه",null,"مصاريف مزارات عملاء مدفوعه",null,"مصاريف خدمة Priority Pass",null,"مصاريف عشاء عملاء مدفوعه",null,"مصاريف حجز  ليالي مجانيه عملاء الشركه",null,"مصاريف حجز تذاكر طيران مجانيه عملاء الشركه",null,"مصاريف فوتشرات مجانيه ماليه عملاء الشركه",null,"مصاريف إنتقال وتوصيل مجانيه عملاء  الشركه",null,"مصاريف مزارات مجانيه عملاء الشركه",null,"مصاريف عشاء مجاني عملاء الشركه",null,"مصاريف حجز فنادق عملاء خارجيين",null,"مصاريف حجز طيران عملاء خارجيين",null,"مصاريف إنتقال وتوصيل عملاء خارجيين",null,"مصاريف تأشيرات عملاء خارجيين",null,"مصاريف مزارات عملاء خارجيين",null,"مصاريف خدمة Priority Pass عملاء خارجيين",null,"مصاريف عشاء عملاء خارجيين",null,"مصاريف بنكيه",null,"مصاريف عمولات بنكيه",null,"مصاريف عمولات تسويق وكالات",null,"مصاريف عمولات تسويق خارجي",null,"مصاريف بريد",null,"مصاريف مطبوعات ",null,"مصاريف داتا",null,"مصاريف رحلات عمل",null,"مصاريف خصم كروت",null,"مصاريف دعايه وإعلان وترويج",null,"مصاريف علاقات عامه وإستقبال",null,"مرتبات ومكافأت عموميه",null,"حصة الشركه في التأمينات عموميه",null,"مصاريف مياه عموميه",null,"مصاريف كهرباء عموميه",null,"مصاريف غاز عموميه",null,"مصاريف إيجار",null,"مصاريف بوفيه",null,"مصاريف ترفيه ",null,"مصاريف نقل مستلزمات الشركه",null,"مصاريف إنتقالات موظفين عموميه",null,"مواد تعبئة وتغليف",null,"خصم مسموح به",null,"مصاريف مكتب أخرى عموميه",null,"مصاريف أدوات كتابيه عموميه",null,"مصاريف صيانه عموميه",null,"إكراميات عموميه",null,"مصاريف مراجعه عموميه",null,"مصاريف فرق تقويم عمله",null,"مصاريف نظافه",null,"مصاريف غرامات عموميه",null,"مصاريف مكافآت لغير العاملين عن خدمات مؤداه",null,"مصاريف سنوات سابقه",null,"مصاريف رسوم إداريه",null,"رسوم وضرائب",null,"إيرادات كروت يلا سفـــــر  للشركه",null,"إيرادات كروت يلا سفـــــر  للوكالات",null,"إيرادات كروت شركات تسويق أخرى",null,"إيرادات حجز فنادق عملاء مدفوعه",null,"إيرادات حجز طيران عملاء مدفوعه",null,"إيرادات إنتقال وتوصيل عملاء  مدفوعه",null,"إيرادات تأشيرات عملاء مدفوعه",null,"إيرادات مزارات عملاء مدفوعه",null,"إيرادات خدمة Priority Pass مدفوعه",null,"إيرادات عشاء عملاء مدفوعه",null,"إيراد فرق ليالي مجانيه عملاء الشركه",null,"إيراد فرق حجز تذاكر طيران مجانيه عملاء الشركه",null,"إيراد فرق فوتشرات مجانيه ماليه عملاء الشركه",null,"إيراد فرق إنتقال وتوصيل مجانيه عملاء  الشركه",null,"إيراد فرق مزارات مجانيه عملاء الشركه",null,"إيراد فرق عشاء مجاني عملاء الشركه",null,"إيرادات حجز فنادق عملاء خارجيين",null,"إيرادات حجز طيران عملاء خارجيين",null,"إيرادات إنتقال وتوصيل عملاء خارجيين",null,"إيرادات تأشيرات عملاء خارجيين",null,"إيرادات مزارات عملاء خارجيين",null,"إيرادات خدمة Priority Pass عملاء خارجيين",null,"إيرادات عشاء عملاء خارجيين",null,"إيراد خدمات عملاء وكالة 1",null,"إيراد خدمات عملاء وكالات أخرى",null,"إيرادات أخرى كروت (رسوم خصم)",null,"إيرادات أخرى حجز",null,"إيرادات أخرى فرق تقويم عمله",null,"ايرادت الاستثمار",null,"خصم مكتسب",null,"ارباح راسمالية",null,"ايجارات دائنة ",null,"ايرادات اخرى متنوعة",null,"إيرادات سنوات سابقه"]
[null,"No","Date","Statement","Difference","مدين","دائن","مدين","دائن","مدين","دائن","مدين","دائن","مدين","دائن","مدين","دائن","مدين","دائن","مدين","دائن","مدين","دائن","مدين","دائن","مدين","دائن","مدين","دائن","مدين","دائن","مدين","دائن","مدين","دائن","مدين","دائن","مدين","دائن","مدين","دائن","مدين","دائن","مدين","دائن","مدين","دائن","مدين","دائن","مدين","دائن","مدين","دائن","مدين","دائن","مدين","دائن","مدين","دائن","مدين","دائن","مدين","دائن","مدين","دائن","مدين","دائن","مدين","دائن","مدين","دائن","مدين","دائن","مدين","دائن","مدين","دائن","مدين","دائن","مدين","دائن","مدين","دائن","مدين","دائن","مدين","دائن","مدين","دائن","مدين","دائن","مدين","دائن","مدين","دائن","مدين","دائن","مدين","دائن","مدين","دائن","مدين","دائن","مدين","دائن","مدين","دائن","مدين","دائن","مدين","دائن","مدين","دائن","مدين","دائن","مدين","دائن","مدين","دائن","مدين","دائن","مدين","دائن","مدين","دائن","مدين","دائن","مدين","دائن","مدين","دائن","مدين","دائن","مدين","دائن","مدين","دائن","مدين","دائن","مدين","دائن","مدين","دائن","مدين","دائن","مدين","دائن","مدين","دائن","مدين","دائن","مدين","دائن","مدين","دائن","مدين","دائن","مدين","دائن","مدين","دائن","مدين","دائن","مدين","دائن","مدين","دائن","مدين","دائن","مدين","دائن","مدين","دائن","مدين","دائن","مدين","دائن","مدين","دائن","مدين","دائن","مدين","دائن","مدين","دائن","مدين","دائن","مدين","دائن","مدين","دائن","مدين","دائن","مدين","دائن","مدين","دائن","مدين","دائن","مدين","دائن","مدين","دائن","مدين","دائن","مدين","دائن","مدين","دائن","مدين","دائن","مدين","دائن","مدين","دائن","مدين","دائن","مدين","دائن","مدين","دائن","مدين","دائن","مدين","دائن","مدين","دائن","مدين","دائن","مدين","دائن","مدين","دائن","مدين","دائن","مدين","دائن","مدين","دائن","مدين","دائن","مدين","دائن","مدين","دائن","مدين","دائن","مدين","دائن","مدين","دائن","مدين","دائن","مدين","دائن","مدين","دائن","مدين","دائن","مدين","دائن","مدين","دائن","مدين","دائن","مدين","دائن","مدين","دائن","مدين","دائن","مدين","دائن","مدين","دائن","مدين","دائن","مدين","دائن","مدين","دائن","مدين","دائن","مدين","دائن","مدين","دائن","مدين","دائن","مدين","دائن","مدين","دائن","مدين","دائن","مدين","دائن","مدين","دائن","مدين","دائن","مدين","دائن","مدين","دائن","مدين","دائن","مدين","دائن","مدين","دائن","مدين","دائن","مدين","دائن","مدين","دائن","مدين","دائن","مدين","دائن","مدين","دائن","مدين","دائن","مدين","دائن","مدين","دائن","مدين","دائن","مدين","دائن","مدين","دائن","مدين","دائن","مدين","دائن","مدين","دائن","مدين","دائن","مدين","دائن"]
[null,1,"2019-10-31","قيمة مصاريف خزينة الشركه عن شهر أكتوبر",{"$f":"F6=G6","v":true},{"$f":"SUMIF($H$5:$MG$5,\"مدين\",H6:MG6)","v":31840.25},{"$f":"SUMIF($H$5:$MG$5,\"مدين\",I6:MG6)","v":31840.25},null,null,null,null,null,null,null,null,2730,null,4700,null,2800,null,null,null,null,null,null,null,null,null,null,null,null,null,null,null,null,null,null,null,null,31840.25,null,null,null,null,null,null,null,null,null,null,null,null,null,null,null,null,null,null,null,null,null,null,1100,null,null,null,null,null,null,null,null,null,null,null,null,null,null,null,null,null,null,null,null,null,null,null,null,null,null,null,null,null,null,null,null,null,null,null,null,null,null,null,null,null,null,null,null,null,null,null,null,null,null,null,null,null,null,null,null,null,null,null,null,null,null,null,null,null,null,null,null,null,null,null,null,null,null,null,null,null,null,null,null,null,null,null,null,null,null,null,null,null,null,null,null,null,null,null,null,null,null,null,null,null,{"$f":"682.48+1000","v":1682.48},null,null,null,null,null,null,null,null,null,null,null,null,null,null,null,null,null,null,null,null,null,null,null,null,null,null,null,null,null,null,null,null,null,null,null,null,null,null,null,null,null,null,null,null,null,null,null,null,null,null,null,null,null,null,null,null,null,null,null,null,null,null,null,null,null,null,null,null,null,212,null,null,null,5000,null,442.25,null,1000,null,300,null,25,null,null,null,null,null,4343,null,null,null,1442.5,null,358.52,null,null,null,null,null,1204.5,null,null,null,2000,null,null,null,2500]
[null,2,"2019-10-31","قيمة تسوية إيرادات الكروت عن أكتوبر 2019",{"$f":"F7=G7","v":true},184005.8,184005.8,null,null,null,null,null,null,null,null,null,null,null,null,null,null,null,null,null,null,null,null,null,null,null,null,null,null,null,null,null,null,null,null,null,null,null,null,null,null,null,null,null,null,null,{"$f":"4800+400+7520+3040","v":15760},null,null,null,null,null,null,{"$f":"2672+6800","v":9472},null,9440,null,null,null,null,null,null,null,null,null,null,null,null,null,{"$f":"124378.8+1593.75+39121.25","v":165093.79999999999},null,null,null,null,null,null,null,null,null,null,null,null,null,null,null,null,null,null,null,null,null,null,null,null,null,null,null,null,null,null,null,null,null,null,null,null,null,null,null,null,null,null,null,null,null,null,null,null,null,null,null,null,null,null,null,null,null,null,null,null,null,null,null,null,null,null,null,null,null,null,null,null,null,null,null,null,null,null,null,null,null,null,null,null,null,null,null,null,null,null,null,null,null,null,null,null,null,null,null,null,null,null,null,null,null,null,null,null,null,null,null,null,null,null,null,null,null,null,null,null,null,null,null,null,null,null,null,null,null,null,null,null,null,null,null,null,null,null,null,null,null,null,null,null,null,null,null,null,null,null,null,null,null,null,null,null,null,null,null,null,null,null,null,null,null,null,null,null,null,null,null,null,null,null,null,null,null,null,null,null,null,null,null,null,null,null,null,null,null,null,null,null,null,null,null,null,null,null,null,null,null,null,null,null,168245.8]
[null,3,"2019-10-14","قيمة سداد العميله مدام نشوى لإيراد حجزها في فندق الحياه ريجنسي فايل 1",true,7400,7400,null,null,null,null,null,null,null,null,null,null,null,null,null,null,null,null,null,null,null,null,null,null,null,null,null,null,null,null,null,null,null,null,7400,null,null,null,null,null,null,null,null,null,null,7400]
[null,4,"2019-10-14","قيمة إيراد حجز العميله مدام نشوى في فندق الحياه ريجنسي فايل 1",true,7400,7400,null,null,null,null,null,null,null,null,null,null,null,null,null,null,null,null,null,null,null,null,null,null,null,null,null,null,null,null,null,null,null,null,null,null,null,null,null,null,null,null,null,null,7400,null,null,null,null,null,null,null,null,null,null,null,null,null,null,null,null,null,null,null,null,null,null,null,null,null,null,null,null,null,null,null,null,null,null,null,null,null,null,null,null,null,null,null,null,null,null,null,null,null,null,null,null,null,null,null,null,null,null,null,null,null,null,null,null,null,null,null,null,null,null,null,null,null,null,null,null,null,null,null,null,null,null,null,null,null,null,null,null,null,null,null,null,null,null,null,null,null,null,null,null,null,null,null,null,null,null,null,null,null,null,null,null,null,null,null,null,null,null,null,null,null,null,null,null,null,null,null,null,null,null,null,null,null,null,null,null,null,null,null,null,null,null,null,null,null,null,null,null,null,null,null,null,null,null,null,null,null,null,null,null,null,null,null,null,null,null,null,null,null,null,null,null,null,null,null,null,null,null,null,null,null,null,null,null,null,null,null,null,null,null,null,null,null,null,null,null,null,null,null,null,null,null,null,null,null,null,null,null,null,null,null,null,null,null,null,null,null,null,null,null,null,null,null,null,null,null,null,null,null,null,null,null,null,null,7400]
[null,5,"2019-10-14","قيمة مصروفات حجز العميله مدام نشوى في فندق الحياه ريجنسي فايل 1",true,6850,6850,null,null,null,null,null,null,null,null,null,null,null,null,null,null,null,null,null,null,null,null,null,null,null,null,null,null,null,null,null,null,null,null,null,6850,null,null,null,null,null,null,null,null,null,null,null,null,null,null,null,null,null,null,null,null,null,null,null,null,null,null,null,null,null,null,null,null,null,null,null,null,null,null,null,null,null,null,null,null,null,null,null,null,null,null,null,null,null,null,null,null,null,null,null,null,null,null,null,null,null,null,null,null,null,null,null,null,null,null,null,null,null,null,null,null,null,null,null,null,null,null,null,null,null,null,null,null,null,null,null,null,null,null,null,null,null,null,null,null,null,null,null,null,null,null,null,null,null,null,null,null,null,null,null,null,null,null,null,null,null,null,6850]
[null,6,"2019-10-14","قيمة سداد العميل حسين هندي لإيراد حجزه في فندق الحياه ريجنسي فايل 2",true,4813.6000000000004,4813.6000000000004,null,null,null,null,null,null,null,null,null,null,null,null,null,null,null,null,null,null,null,null,null,null,null,null,null,null,null,null,null,null,null,null,1600,null,null,null,null,null,null,null,null,null,null,4813.6000000000004,null,null,null,null,null,null,null,null,null,null,null,null,null,null,null,null,null,null,null,null,null,null,3213.6]
[null,7,"2019-10-14","قيمة إيراد حجز العميل حسين هندي في فندق الحياه ريجنسي فايل 2",true,4813.6000000000004,4813.6000000000004,null,null,null,null,null,null,null,null,null,null,null,null,null,null,null,null,null,null,null,null,null,null,null,null,null,null,null,null,null,null,null,null,null,null,null,null,null,null,null,null,null,null,4813.6000000000004,null,null,null,null,null,null,null,null,null,null,null,null,null,null,null,null,null,null,null,null,null,null,null,null,null,null,null,null,null,null,null,null,null,null,null,null,null,null,null,null,null,null,null,null,null,null,null,null,null,null,null,null,null,null,null,null,null,null,null,null,null,null,null,null,null,null,null,null,null,null,null,null,null,null,null,null,null,null,null,null,null,null,null,null,null,null,null,null,null,null,null,null,null,null,null,null,null,null,null,null,null,null,null,null,null,null,null,null,null,null,null,null,null,null,null,null,null,null,null,null,null,null,null,null,null,null,null,null,null,null,null,null,null,null,null,null,null,null,null,null,null,null,null,null,null,null,null,null,null,null,null,null,null,null,null,null,null,null,null,null,null,null,null,null,null,null,null,null,null,null,null,null,null,null,null,null,null,null,null,null,null,null,null,null,null,null,null,null,null,null,null,null,null,null,null,null,null,null,null,null,null,null,null,null,null,null,null,null,null,null,null,null,null,null,null,null,null,null,null,null,null,null,null,null,null,null,null,null,null,null,null,null,null,null,4813.6000000000004]
[null,8,"2019-10-14","قيمة مصروف حجز العميل حسين هندي في فندق الحياه ريجنسي فايل 2",true,4800,4800,null,null,null,null,null,null,null,null,null,null,null,null,null,null,null,null,null,null,null,null,null,null,null,null,null,null,null,null,null,null,null,null,null,null,null,null,null,null,null,null,null,null,null,null,null,null,null,null,null,null,null,null,null,null,null,null,null,null,null,null,null,null,null,null,null,null,null,4800,null,null,null,null,null,null,null,null,null,null,null,null,null,null,null,null,null,null,null,null,null,null,null,null,null,null,null,null,null,null,null,null,null,null,null,null,null,null,null,null,null,null,null,null,null,null,null,null,null,null,null,null,null,null,null,null,null,null,null,null,null,null,null,null,null,null,null,null,null,null,null,null,null,null,null,null,null,null,null,null,null,null,null,null,null,null,null,null,null,null,null,null,4800]
[null,9,"2019-10-19","قيمة سداد العميل سلطان الحكمي لإيراد حجزه في لاونج هوتيل سويت فايل 3",true,670.8,670.8,null,null,null,null,null,null,null,null,null,null,null,null,null,null,null,null,null,null,null,null,null,null,null,null,null,null,null,null,null,null,null,null,null,null,null,null,null,null,null,null,null,null,null,670.8,null,null,null,null,null,null,null,null,null,null,null,null,null,null,null,null,null,null,null,null,null,null,670.8]
[null,10,"2019-10-19","قيمة إيراد حجز العميل سلطان الحكمي في لاونج هوتيل سويت فايل 3",true,670.8,670.8,null,null,null,null,null,null,null,null,null,null,null,null,null,null,null,null,null,null,null,null,null,null,null,null,null,null,null,null,null,null,null,null,null,null,null,null,null,null,null,null,null,null,670.8,null,null,null,null,null,null,null,null,null,null,null,null,null,null,null,null,null,null,null,null,null,null,null,null,null,null,null,null,null,null,null,null,null,null,null,null,null,null,null,null,null,null,null,null,null,null,null,null,null,null,null,null,null,null,null,null,null,null,null,null,null,null,null,null,null,null,null,null,null,null,null,null,null,null,null,null,null,null,null,null,null,null,null,null,null,null,null,null,null,null,null,null,null,null,null,null,null,null,null,null,null,null,null,null,null,null,null,null,null,null,null,null,null,null,null,null,null,null,null,null,null,null,null,null,null,null,null,null,null,null,null,null,null,null,null,null,null,null,null,null,null,null,null,null,null,null,null,null,null,null,null,null,null,null,null,null,null,null,null,null,null,null,null,null,null,null,null,null,null,null,null,null,null,null,null,null,null,null,null,null,null,null,null,null,null,null,null,null,null,null,null,null,null,null,null,null,null,null,null,null,null,null,null,null,null,null,null,null,null,null,null,null,null,null,null,null,null,null,null,null,null,null,null,null,null,null,null,null,null,null,null,null,null,null,670.8]
[null,11,"2019-10-19","قيمة سداد مصروف حجز العميل سلطان الحكمي من شركة عميلي فايل3",true,608,608,null,null,null,null,null,null,null,null,null,null,null,null,null,null,null,null,null,null,null,null,null,null,null,null,null,null,null,null,null,null,null,null,null,null,null,null,null,null,null,null,null,null,null,null,null,null,null,null,null,null,null,null,null,null,null,null,null,null,null,null,null,null,null,null,null,null,null,608,null,null,null,null,null,null,null,null,null,null,null,null,null,null,null,null,null,null,null,null,null,null,null,null,null,null,null,null,null,null,null,null,null,null,null,null,null,null,null,null,null,null,null,null,null,null,null,null,null,null,null,null,null,null,null,null,null,null,null,null,null,null,null,null,null,null,null,null,null,null,null,null,null,null,null,null,null,null,null,null,null,null,null,null,null,null,null,null,null,null,null,null,608]
[null,12,"2019-10-19","قيمة ربح فايل رقم 4 العميله نسرين اليماني لدى شركة عميلي",true,408,408,null,null,null,null,null,null,null,null,null,null,null,null,null,null,null,null,null,null,null,null,null,null,null,null,null,null,null,null,null,null,null,null,null,null,null,null,null,null,null,null,null,null,204,204,null,null,null,null,null,null,null,null,null,null,null,null,null,null,null,null,null,null,null,null,null,null,204,null,null,null,null,null,null,null,null,null,null,null,null,null,null,null,null,null,null,null,null,null,null,null,null,null,null,null,null,null,null,null,null,null,null,null,null,null,null,null,null,null,null,null,null,null,null,null,null,null,null,null,null,null,null,null,null,null,null,null,null,null,null,null,null,null,null,null,null,null,null,null,null,null,null,null,null,null,null,null,null,null,null,null,null,null,null,null,null,null,null,null,null,null,null,null,null,null,null,null,null,null,null,null,null,null,null,null,null,null,null,null,null,null,null,null,null,null,null,null,null,null,null,null,null,null,null,null,null,null,null,null,null,null,null,null,null,null,null,null,null,null,null,null,null,null,null,null,null,null,null,null,null,null,null,null,null,null,null,null,null,null,null,null,null,null,null,null,null,null,null,null,null,null,null,null,null,null,null,null,null,null,null,null,null,null,null,null,null,null,null,null,null,null,null,null,null,null,null,null,null,null,null,null,null,null,null,null,null,null,null,null,null,204]
[null,13,"2019-10-15","قيمة ربح فايل رقم 5 العميل زياد بصري لدى شركة عميلي",true,2235.5,2235.5,null,null,null,null,null,null,null,null,null,null,null,null,null,null,null,null,null,null,null,null,null,null,null,null,null,null,null,null,null,null,null,null,null,null,null,null,null,null,null,null,null,null,1117.75,1117.75,null,null,null,null,null,null,null,null,null,null,null,null,null,null,null,null,null,null,null,null,null,null,1117.75,null,null,null,null,null,null,null,null,null,null,null,null,null,null,null,null,null,null,null,null,null,null,null,null,null,null,null,null,null,null,null,null,null,null,null,null,null,null,null,null,null,null,null,null,null,null,null,null,null,null,null,null,null,null,null,null,null,null,null,null,null,null,null,null,null,null,null,null,null,null,null,null,null,null,null,null,null,null,null,null,null,null,null,null,null,null,null,null,null,null,null,null,null,null,null,null,null,null,null,null,null,null,null,null,null,null,null,null,null,null,null,null,null,null,null,null,null,null,null,null,null,null,null,null,null,null,null,null,null,null,null,null,null,null,null,null,null,null,null,null,null,null,null,null,null,null,null,null,null,null,null,null,null,null,null,null,null,null,null,null,null,null,null,null,null,null,null,null,null,null,null,null,null,null,null,null,null,null,null,null,null,null,null,null,null,null,null,null,null,null,null,null,null,null,null,null,null,null,null,null,null,null,null,null,null,null,null,null,null,null,null,null,1117.75]
[null,14,"2019-10-08","قيمة تمويل الخزينة من الحساب الشخصي لنانسي بهيج",true,31290.25,31290.25,null,null,null,null,null,null,null,null,null,null,null,null,null,null,null,null,null,null,null,null,null,null,null,null,null,null,null,null,null,null,null,null,31290.25,null,null,null,null,null,null,null,null,null,null,null,null,null,null,null,null,null,null,null,null,null,null,null,null,null,null,null,null,null,null,null,null,null,null,null,null,null,null,null,null,null,null,null,null,null,null,null,null,null,null,null,null,null,null,null,null,null,null,null,null,null,null,null,null,null,null,null,null,null,null,null,null,null,null,null,null,null,null,null,null,null,null,null,null,null,null,null,null,null,null,null,null,31290.25]
[null,15,"2019-10-26","قيمة إيراد حجز العميل حمد الفارس في فندق جاردن بلاس فايل رقم 7 ",true,3057.6,3057.6,null,null,null,null,null,null,null,null,null,null,null,null,null,null,null,null,null,null,null,null,null,null,null,null,null,null,null,null,null,null,null,null,null,null,null,null,null,null,null,null,null,null,null,3057.6,null,null,null,null,null,null,null,null,null,null,null,null,null,null,null,null,null,null,null,null,null,null,3057.6]
[null,16,"2019-10-26","قيمة إيراد حجز العميل حمد الفارس في فندق جاردن بلاس فايل رقم 7",true,3057.6,3057.6,null,null,null,null,null,null,null,null,null,null,null,null,null,null,null,null,null,null,null,null,null,null,null,null,null,null,null,null,null,null,null,null,null,null,null,null,null,null,null,null,null,null,3057.6,null,null,null,null,null,null,null,null,null,null,null,null,null,null,null,null,null,null,null,null,null,null,null,null,null,null,null,null,null,null,null,null,null,null,null,null,null,null,null,null,null,null,null,null,null,null,null,null,null,null,null,null,null,null,null,null,null,null,null,null,null,null,null,null,null,null,null,null,null,null,null,null,null,null,null,null,null,null,null,null,null,null,null,null,null,null,null,null,null,null,null,null,null,null,null,null,null,null,null,null,null,null,null,null,null,null,null,null,null,null,null,null,null,null,null,null,null,null,null,null,null,null,null,null,null,null,null,null,null,null,null,null,null,null,null,null,null,null,null,null,null,null,null,null,null,null,null,null,null,null,null,null,null,null,null,null,null,null,null,null,null,null,null,null,null,null,null,null,null,null,null,null,null,null,null,null,null,null,null,null,null,null,null,null,null,null,null,null,null,null,null,null,null,null,null,null,null,null,null,null,null,null,null,null,null,null,null,null,null,null,null,null,null,null,null,null,null,null,null,null,null,null,null,null,null,null,null,null,null,null,null,null,null,null,3057.6]
[null,17,"2019-10-26","قيمة مصروف حجز العميل حمد الفارس في فندق جاردن بلاس فايل 7",true,2890,2890,null,null,null,null,null,null,null,null,null,null,null,null,null,null,null,null,null,null,null,null,null,null,null,null,null,null,null,null,null,null,null,null,null,null,null,null,null,null,null,null,null,null,null,null,null,null,null,null,null,null,null,null,null,null,null,null,null,null,null,null,null,null,null,null,null,null,null,2890,null,null,null,null,null,null,null,null,null,null,null,null,null,null,null,null,null,null,null,null,null,null,null,null,null,null,null,null,null,null,null,null,null,null,null,null,null,null,null,null,null,null,null,null,null,null,null,null,null,null,null,null,null,null,null,null,null,null,null,null,null,null,null,null,null,null,null,null,null,null,null,null,null,null,null,null,null,null,null,null,null,null,null,null,null,null,null,null,null,null,null,null,2890]
[null,18,"2019-10-26","قيمة إيراد طيران العميل محمد الأسود  فايل رقم8         2960 ريال",true,12580,12580,null,null,null,null,null,null,null,null,null,null,null,null,null,null,null,null,null,null,null,null,null,null,null,null,null,null,null,null,null,null,null,null,null,null,null,null,null,null,null,null,null,null,null,12580,null,null,null,null,null,null,null,null,null,null,null,null,null,null,null,null,null,null,null,null,null,null,12580]
[null,19,"2019-10-31","قيمة إيراد طيران العميل محمد الأسود  فايل رقم 8 ",true,12580,12580,null,null,null,null,null,null,null,null,null,null,null,null,null,null,null,null,null,null,null,null,null,null,null,null,null,null,null,null,null,null,null,null,null,null,null,null,null,null,null,null,null,null,12580,null,null,null,null,null,null,null,null,null,null,null,null,null,null,null,null,null,null,null,null,null,null,null,null,null,null,null,null,null,null,null,null,null,null,null,null,null,null,null,null,null,null,null,null,null,null,null,null,null,null,null,null,null,null,null,null,null,null,null,null,null,null,null,null,null,null,null,null,null,null,null,null,null,null,null,null,null,null,null,null,null,null,null,null,null,null,null,null,null,null,null,null,null,null,null,null,null,null,null,null,null,null,null,null,null,null,null,null,null,null,null,null,null,null,null,null,null,null,null,null,null,null,null,null,null,null,null,null,null,null,null,null,null,null,null,null,null,null,null,null,null,null,null,null,null,null,null,null,null,null,null,null,null,null,null,null,null,null,null,null,null,null,null,null,null,null,null,null,null,null,null,null,null,null,null,null,null,null,null,null,null,null,null,null,null,null,null,null,null,null,null,null,null,null,null,null,null,null,null,null,null,null,null,null,null,null,null,null,null,null,null,null,null,null,null,null,null,null,null,null,null,null,null,null,null,null,null,null,null,null,null,null,null,null,null,null,12580]
[null,20,"2019-10-31","قيمة مصروف طيران العميل محمد الأسود  فايل رقم 8 ",true,20825,20825,null,null,null,null,null,null,null,null,null,null,null,null,null,null,null,null,null,null,null,null,null,null,null,null,null,null,null,null,null,null,null,null,null,null,null,null,null,null,null,null,null,null,null,null,null,null,null,null,null,null,null,null,null,null,null,null,null,null,null,null,null,null,null,null,null,null,null,20825,null,null,null,null,null,null,null,null,null,null,null,null,null,null,null,null,null,null,null,null,null,null,null,null,null,null,null,null,null,null,null,null,null,null,null,null,null,null,null,null,null,null,null,null,null,null,null,null,null,null,null,null,null,null,null,null,null,null,null,null,null,null,null,null,null,null,null,null,null,null,null,null,null,null,null,null,null,null,null,null,null,null,null,null,null,null,null,null,null,null,null,null,null,null,12580,null,null,null,null,null,null,null,null,null,null,null,null,null,8245]
[null,21,"2019-10-31","قيمة إيراد حجز العميل محمد الأسود شقه  فايل رقم 9",true,6613,6613,null,null,null,null,null,null,null,null,null,null,null,null,null,null,null,null,null,null,null,null,null,null,null,null,null,null,null,null,null,null,null,null,null,null,null,null,null,null,null,null,null,null,null,6613,null,null,null,null,null,null,null,null,null,null,null,null,null,null,null,null,null,null,null,null,null,null,6613]
[null,22,"2019-10-31","قيمة إيراد حجز العميل محمد الأسود شقه  فايل رقم 9",true,6613,6613,null,null,null,null,null,null,null,null,null,null,null,null,null,null,null,null,null,null,null,null,null,null,null,null,null,null,null,null,null,null,null,null,null,null,null,null,null,null,null,null,null,null,6613,null,null,null,null,null,null,null,null,null,null,null,null,null,null,null,null,null,null,null,null,null,null,null,null,null,null,null,null,null,null,null,null,null,null,null,null,null,null,null,null,null,null,null,null,null,null,null,null,null,null,null,null,null,null,null,null,null,null,null,null,null,null,null,null,null,null,null,null,null,null,null,null,null,null,null,null,null,null,null,null,null,null,null,null,null,null,null,null,null,null,null,null,null,null,null,null,null,null,null,null,null,null,null,null,null,null,null,null,null,null,null,null,null,null,null,null,null,null,null,null,null,null,null,null,null,null,null,null,null,null,null,null,null,null,null,null,null,null,null,null,null,null,null,null,null,null,null,null,null,null,null,null,null,null,null,null,null,null,null,null,null,null,null,null,null,null,null,null,null,null,null,null,null,null,null,null,null,null,null,null,null,null,null,null,null,null,null,null,null,null,null,null,null,null,null,null,null,null,null,null,null,null,null,null,null,null,null,null,null,null,null,null,null,null,null,null,null,null,null,null,null,null,null,null,null,null,null,null,null,null,null,null,null,null,6613]
[null,23,"2019-10-31","قيمة مصروف حجز العميل محمد الأسود شقه  فايل رقم 9",true,6963.07,6963.07,null,null,null,null,null,null,null,null,null,null,null,null,null,null,null,null,null,null,null,null,null,null,null,null,null,null,null,null,null,null,null,null,null,null,null,null,null,null,null,null,null,null,null,null,null,null,null,null,null,null,null,null,null,null,null,null,null,null,null,null,null,null,null,null,null,null,null,null,null,null,null,null,null,null,null,null,null,null,null,null,null,null,null,null,null,null,null,null,null,null,null,null,null,null,null,null,null,null,null,null,null,null,null,null,null,null,null,null,null,null,null,null,null,6963.07,null,null,null,null,null,null,null,null,null,null,null,null,null,null,null,null,null,null,null,null,null,null,null,null,null,null,null,null,null,null,null,null,null,null,null,null,null,null,null,null,null,null,null,null,null,null,6963.07]
[null,24,"2019-10-31","قيمة إيراد حجز العميل دسوقي عبد الواحد  فايل رقم 10",true,21550,21550,null,null,null,null,null,null,null,null,null,null,null,null,null,null,null,null,null,null,null,null,null,null,null,null,null,null,null,null,null,null,null,null,21550,null,null,null,null,null,null,null,null,null,null,21550]
[null,25,"2019-10-31","قيمة إيراد حجز العميل دسوقي عبد الواحد  فايل رقم 10",true,21550,21550,null,null,null,null,null,null,null,null,null,null,null,null,null,null,null,null,null,null,null,null,null,null,null,null,null,null,null,null,null,null,null,null,null,null,null,null,null,null,null,null,null,null,21550,null,null,null,null,null,null,null,null,null,null,null,null,null,null,null,null,null,null,null,null,null,null,null,null,null,null,null,null,null,null,null,null,null,null,null,null,null,null,null,null,null,null,null,null,null,null,null,null,null,null,null,null,null,null,null,null,null,null,null,null,null,null,null,null,null,null,null,null,null,null,null,null,null,null,null,null,null,null,null,null,null,null,null,null,null,null,null,null,null,null,null,null,null,null,null,null,null,null,null,null,null,null,null,null,null,null,null,null,null,null,null,null,null,null,null,null,null,null,null,null,null,null,null,null,null,null,null,null,null,null,null,null,null,null,null,null,null,null,null,null,null,null,null,null,null,null,null,null,null,null,null,null,null,null,null,null,null,null,null,null,null,null,null,null,null,null,null,null,null,null,null,null,null,null,null,null,null,null,null,null,null,null,null,null,null,null,null,null,null,null,null,null,null,null,null,null,null,null,null,null,null,null,null,null,null,null,null,null,null,null,null,null,null,null,null,null,null,null,null,null,null,null,null,null,null,null,null,null,null,null,null,null,null,null,21550]
[null,26,"2019-10-31","قيمة مصروف حجز العميل دسوقي عبد الواحد  فايل رقم 10",true,19915,19915,null,null,null,null,null,null,null,null,null,null,null,null,null,null,null,null,null,null,null,null,null,null,null,null,null,null,null,null,null,null,null,null,null,null,null,null,null,null,null,null,null,null,null,null,null,null,null,null,null,null,null,null,null,null,null,null,null,null,null,null,null,null,null,null,null,null,null,19915,null,null,null,null,null,null,null,null,null,null,null,null,null,null,null,null,null,null,null,null,null,null,null,null,null,null,null,null,null,null,null,null,null,null,null,null,null,null,null,null,null,null,null,null,null,null,null,null,null,null,null,null,null,null,null,null,null,null,null,null,null,null,null,null,null,null,null,null,null,null,null,null,null,null,null,null,null,null,null,null,null,null,null,null,null,null,null,null,null,null,null,null,19915]
[null,27,"2019-10-31","قيمة توريد مبلغ إيراد العميل دسوقي عبدالواحد لنانسي بهيج",true,21550,21550,null,null,null,null,null,null,null,null,null,null,null,null,null,null,null,null,null,null,null,null,null,null,null,null,null,null,null,null,null,null,null,null,null,21550,null,null,null,null,null,null,null,null,null,null,null,null,null,null,null,null,null,null,null,null,null,null,null,null,null,null,null,null,null,null,null,null,null,null,21550]
[null,28,"2019-10-31","قيمة إيراد فرق ليالي مجانيه العميل سعد صالح  فايل رقم 11",true,4462.5,4462.5,null,null,null,null,null,null,null,null,null,null,null,null,null,null,null,null,null,null,null,null,null,null,null,null,null,null,null,null,null,null,null,null,null,null,null,null,null,null,null,null,null,null,null,4462.5,null,null,null,null,null,null,null,null,null,null,null,null,null,null,null,null,null,null,null,null,null,null,4462.5]
[null,29,"2019-10-31","قيمة إيراد فرق ليالي مجانيه العميل سعد صالح  فايل رقم 11",{"$f":"F34=G34","v":true},4462.5,4462.5,null,null,null,null,null,null,null,null,null,null,null,null,null,null,null,null,null,null,null,null,null,null,null,null,null,null,null,null,null,null,null,null,null,null,null,null,null,null,null,null,null,null,4462.5,null,null,null,null,null,null,null,null,null,null,null,null,null,null,null,null,null,null,null,null,null,null,null,null,null,null,null,null,null,null,null,null,null,null,null,null,null,null,null,null,null,null,null,null,null,null,null,null,null,null,null,null,null,null,null,null,null,null,null,null,null,null,null,null,null,null,null,null,null,null,null,null,null,null,null,null,null,null,null,null,null,null,null,null,null,null,null,null,null,null,null,null,null,null,null,null,null,null,null,null,null,null,null,null,null,null,null,null,null,null,null,null,null,null,null,null,null,null,null,null,null,null,null,null,null,null,null,null,null,null,null,null,null,null,null,null,null,null,null,null,null,null,null,null,null,null,null,null,null,null,null,null,null,null,null,null,null,null,null,null,null,null,null,null,null,null,null,null,null,null,null,null,null,null,null,null,null,null,null,null,null,null,null,null,null,null,null,null,null,null,null,null,null,null,null,null,null,null,null,null,null,null,null,null,null,null,null,null,null,null,null,null,null,null,null,null,null,null,null,null,null,null,null,null,null,null,null,null,null,null,null,null,null,null,null,null,null,null,null,null,null,null,null,null,null,null,null,null,4462.5]
[null,30,"2019-10-31","قيمة مصاريف ليالي مجانيه العميل سعد صالح  فايل رقم 11",true,5920,5920,null,null,null,null,null,null,null,null,null,null,null,null,null,null,null,null,null,null,null,null,null,null,null,null,null,null,null,null,null,null,null,null,null,null,null,null,null,null,null,null,null,null,null,null,null,null,null,null,null,null,null,null,null,null,null,null,null,null,null,null,null,null,null,null,null,null,null,5920,null,null,null,null,null,null,null,null,null,null,null,null,null,null,null,null,null,null,null,null,null,null,null,null,null,null,null,null,null,null,null,null,null,null,null,null,null,null,null,null,null,null,null,null,null,null,null,null,null,null,null,null,null,null,null,null,null,null,null,null,null,null,null,null,null,null,null,null,null,null,null,null,null,null,null,null,null,null,null,null,null,null,null,null,null,null,null,null,null,null,null,null,null,null,null,null,null,null,null,null,null,null,null,null,null,null,5920]
[null,31,"2019-10-31","قيمة إيراد حجز العميل تلا محمد البصري  فايل رقم 12",true,15142.75,15142.75,null,null,null,null,null,null,null,null,null,null,null,null,null,null,null,null,null,null,null,null,null,null,null,null,null,null,null,null,null,null,null,null,null,null,null,null,null,null,null,null,null,null,null,15142.75,null,null,null,null,null,null,null,null,null,null,null,null,null,null,null,null,null,null,null,null,null,null,15142.75]
[null,32,"2019-10-31","قيمة إيراد حجز العميل تلا محمد البصري  فايل رقم 12",true,15142.75,15142.75,null,null,null,null,null,null,null,null,null,null,null,null,null,null,null,null,null,null,null,null,null,null,null,null,null,null,null,null,null,null,null,null,null,null,null,null,null,null,null,null,null,null,15142.75,null,null,null,null,null,null,null,null,null,null,null,null,null,null,null,null,null,null,null,null,null,null,null,null,null,null,null,null,null,null,null,null,null,null,null,null,null,null,null,null,null,null,null,null,null,null,null,null,null,null,null,null,null,null,null,null,null,null,null,null,null,null,null,null,null,null,null,null,null,null,null,null,null,null,null,null,null,null,null,null,null,null,null,null,null,null,null,null,null,null,null,null,null,null,null,null,null,null,null,null,null,null,null,null,null,null,null,null,null,null,null,null,null,null,null,null,null,null,null,null,null,null,null,null,null,null,null,null,null,null,null,null,null,null,null,null,null,null,null,null,null,null,null,null,null,null,null,null,null,null,null,null,null,null,null,null,null,null,null,null,null,null,null,null,null,null,null,null,null,null,null,null,null,null,null,null,null,null,null,null,null,null,null,null,null,null,null,null,null,null,null,null,null,null,null,null,null,null,null,null,null,null,null,null,null,null,null,null,null,null,null,null,null,null,null,null,null,null,null,null,null,null,null,null,null,null,null,null,null,null,null,null,null,null,15142.75]
[null,33,"2019-10-31","قيمة مصاريف حجز العميله تلا محمد البصري  فايل رقم 12",true,15200,15200,null,null,null,null,null,null,null,null,null,null,null,null,null,null,null,null,null,null,null,null,null,null,null,null,null,null,null,null,null,null,null,null,null,null,null,null,null,null,null,null,null,null,null,null,null,null,null,null,null,null,null,null,null,null,null,null,null,null,null,null,null,null,null,null,null,null,null,15200,null,null,null,null,null,null,null,null,null,null,null,null,null,null,null,null,null,null,null,null,null,null,null,null,null,null,null,null,null,null,null,null,null,null,null,null,null,null,null,null,null,null,null,null,null,null,null,null,null,null,null,null,null,null,null,null,null,null,null,null,null,null,null,null,null,null,null,null,null,null,null,null,null,null,null,null,null,null,null,null,null,null,null,null,null,null,null,null,null,null,null,null,15200]
[null,34,"2019-10-31","قيمة توريدات للشركه من مستحقاتنا لدى شركة عميلي ليد نانسي بهيج",true,94336,94336,null,null,null,null,null,null,null,null,null,null,null,null,null,null,null,null,null,null,null,null,null,null,null,null,null,null,null,null,null,null,null,null,null,1600,null,null,null,null,null,null,null,null,null,null,null,null,null,null,null,null,null,null,null,null,null,null,null,null,null,null,null,null,null,null,null,null,null,92736,{"$f":"43200+27376+22160+1600","v":94336}]
[null,35,"2019-10-31","قيمة مرتبات العاملين عن شهر أكتوبر",true,61365,61365,null,null,null,null,null,null,null,null,null,null,null,null,null,null,null,null,null,null,null,null,null,null,null,null,null,null,null,null,null,null,null,null,null,null,null,null,null,null,null,null,null,null,null,null,null,null,null,null,null,null,null,null,null,null,null,null,null,{"$f":"500+600","v":1100},null,null,null,null,null,null,null,null,null,null,null,null,null,null,null,null,null,null,null,null,null,null,null,null,null,null,null,null,null,null,null,null,null,null,null,null,null,null,null,null,null,null,null,null,null,null,null,null,null,null,null,null,null,null,null,null,null,null,null,null,null,null,null,null,null,null,null,null,null,null,null,59465,null,null,null,null,null,null,null,null,null,null,null,null,61365,{"$f":"700+100","v":800}]
[null,36,"2019-10-31","قيمة مساهمة الشريك إبراهيم عطوه",true,31850,31850,null,null,null,null,null,null,null,null,null,null,null,null,null,null,null,null,null,null,null,null,null,null,null,null,null,null,null,null,null,null,null,null,null,null,null,null,null,null,null,null,null,null,null,null,null,null,null,null,null,null,null,null,null,null,null,null,null,null,null,null,17500,null,null,null,null,null,null,null,null,null,null,null,null,null,null,null,null,null,null,null,null,null,null,null,null,null,null,null,null,null,null,null,null,null,null,null,null,null,null,null,null,null,null,null,null,null,null,null,null,null,null,null,null,null,null,null,null,null,null,null,null,null,null,null,null,null,null,31850,null,null,null,null,null,null,null,null,null,null,null,null,null,null,null,null,null,null,null,null,null,null,null,null,null,null,9350,null,null,null,2400,null,null,null,null,null,null,null,null,null,null,null,null,null,null,null,null,null,null,null,null,null,null,null,null,null,null,null,null,null,null,null,null,null,null,null,null,null,null,null,null,null,null,null,null,null,null,null,null,null,null,null,null,null,null,null,null,null,null,null,null,null,null,null,null,null,null,null,null,null,null,null,null,null,null,null,null,null,null,null,2150,null,null,null,null,null,null,null,null,null,450]
[null,37,"2019-10-31","قيمة توزيع الأرباح على الشريكين نانسي بهيج وإبراهيم عطوه ورد مصاريفهم",true,125614.73000000001,125614.73000000001,null,null,null,null,null,null,null,null,null,null,null,null,null,null,null,null,null,null,null,null,null,null,null,null,null,null,null,null,null,null,null,null,null,null,null,null,null,null,null,null,null,null,null,null,null,null,null,null,null,null,null,null,null,null,null,null,null,null,null,null,null,null,null,null,null,null,null,33079.74,92534.99,null,33079.74,null,null,null,null,null,null,null,null,null,null,null,null,null,null,null,null,null,null,null,null,null,null,null,null,null,null,null,null,null,null,null,null,null,null,null,null,null,null,null,null,null,null,null,null,null,null,null,null,null,null,null,null,null,null,92534.99]
[null,"الاجمالي ",null,null,true,{"$f":"SUM(F6:F42)","v":821047.09999999986},{"$f":"SUM(G6:G42)","v":821047.09999999986},0,0,0,0,0,0,0,0,2730,0,4700,0,2800,0,0,0,0,0,0,0,0,0,0,0,0,0,0,0,0,0,0,0,61840.25,61840.25,0,0,0,0,0,0,0,0,77612,93372,0,0,0,0,0,0,9472,0,9440,0,0,0,1100,1100,0,0,17500,0,0,{"$f":"SUM(BS6:BS42)","v":0},0,0,212155.8,195973.74,208420.99,0,33079.74,0,0,0,0,0,0,0,0,0,0,0,0,0,0,0,0,0,0,0,0,0,0,0,0,0,0,0,0,0,0,0,0,0,0,0,0,0,0,0,0,0,0,6963.07,0,0,0,0,0,0,0,0,0,0,0,123825.24,0,{"$f":"SUM(EE6:EE42)","v":31850},0,59465,0,0,0,0,0,0,0,0,0,0,0,0,61365,800,0,0,0,0,0,0,0,0,0,0,9350,0,0,0,4082.48,0,57226.07,0,12580,0,0,0,0,0,0,0,0,0,0,0,5920,0,8245,0,0,0,0,0,0,0,0,0,0,0,0,0,0,{"$f":"SUM(GQ6:GQ42)","v":0},0,0,0,0,0,0,0,0,0,0,0,0,0,0,0,0,0,0,0,0,0,0,0,0,0,0,0,0,0,0,0,0,0,0,0,0,212,0,0,0,5000,0,442.25,0,1000,0,2450,0,25,0,0,0,0,0,4343,0,450,0,1442.5,0,358.52,0,0,{"$f":"SUM(JC6:JC42)","v":0},0,0,1204.5,0,0,0,2000,0,0,0,2500,0,0,0,0,168245.8,0,0,0,0,0,59247.75,0,13901.75,0,0,0,0,0,0,0,0,0,0,0,4462.5,0,0,0,0,0,0,0,0,0,0,0,0,0,0,0,0,0,0,0,0,0,0,0,0,0,0,0,{"$f":"SUM(LO6:LO42)","v":0},0,0,0,0,0,0,0,0,0,0,0,0,0,0,0,0,0,0]